[Event "45th FIDE Olympiad 2024"]
[Site "Budapest"]
[Date "2024.09.15"]
[Round "5.106"]
[White "Andersen, Mads"]
[Black "Baburin, Alexander"]
[Result "1-0"]
[ECO "B03"]
[WhiteElo "2598"]
[BlackElo "2376"]
[Annotator "RC"]
[PlyCount "83"]
[EventDate "2024.09.05"]
[EventType "team-tourn"]
[EventCountry "HUN"]
[SourceTitle "playchess.com"]
[Source "ChessBase"]
[SourceQuality "1"]
[WhiteTeam "Denmark"]
[BlackTeam "Ireland"]
[WhiteTeamCountry "DEN"]
[BlackTeamCountry "IRL"]
[TimeControl "40/5400+30:1800+30"]

1. e4 Nf6 2. e5 Nd5 3. c4 Nb6 4. d4 d6 5. f4 Bf5 6. Nc3 e6 7. Nf3 Be7 8. Bd3 Bg4 9. h3 Bxf3 10. Qxf3 dxe5 11. dxe5 Nc6 12. O-O Qd4+ 13. Kh1 O-O-O 14. Rd1 Nxc4 15. Qe2 N6a5 16. Bg6 Qb6 17. Bxf7 Rxd1+ 18. Qxd1 Rf8 19. Bh5 g5 20. Bg4 Kb8 21. Na4 Qf2 22. b3 Rd8 23. Qg1 Qc2 24. bxc4 Qxa4 25. fxg5 Nxc4 26. Bf4 Nd2 27. Be3 Ne4 28. Bxe6 Bxg5 29. Bxg5 Nxg5 30. Bb3 Qf4 31. Re1 Ne4 32. Qe3 Ng3+ 33. Kg1 Qh4 34. e6 Nf5 35. Qe5 Ne7 36. Rf1 a6 37. Rf7 Rg8 38. Kh2 Rg5 39. Rf8+ Ka7 40. Qxc7 Nc6 41. Rf7 Nd8 42. e7 1-0

[Event "45th FIDE Olympiad 2024"]
[Site "Budapest"]
[Date "2024.09.15"]
[Round "5.107"]
[White "Kanyamarala, Tarun"]
[Black "Olsen, Filip Boe"]
[Result "1/2-1/2"]
[ECO "D26"]
[WhiteElo "2361"]
[BlackElo "2441"]
[Annotator "TA"]
[PlyCount "57"]
[EventDate "2024.09.05"]
[EventType "team-tourn"]
[EventCountry "HUN"]
[SourceTitle "playchess.com"]
[Source "ChessBase"]
[SourceQuality "1"]
[WhiteTeam "Ireland"]
[BlackTeam "Denmark"]
[WhiteTeamCountry "IRL"]
[BlackTeamCountry "DEN"]
[TimeControl "40/5400+30:1800+30"]

{[%evp 22,57,10,0,0,0,0,0,0,0,0,0,0,0,0,0,6,7,10,7,10,0,23,6,3,7,12,13,29,30,27,0,37,0,16,0,42,0]} 1. d4 d5 2. c4 e6 3. Nc3 Nf6 4. Bg5 dxc4 5. e3 c5 6. Bxc4 cxd4 7. exd4 Be7 8. Nf3 O-O 9. O-O Nc6 10. a3 a6 11. Rc1 b5 12. Ba2 Bb7 13. Bxf6 Bxf6 14. d5 exd5 {The position is equal.} 15. Bxd5 Na5 16. Bxb7 Nxb7 17. Rc2 Qxd1 18. Rxd1 Rac8 19. Rdc1 Rfd8 20. Kf1 Rc4 21. b3 Rg4 22. h3 Rf4 23. Re1 Bxc3 24. Rxc3 Na5 25. Rd3 Rc8 26. Rc3 Rd8 27. Rd3 Rc8 28. Rc3 Rd8 29. Rd3 {Not much happened in this game.   Weighted Error Value: White=0.07 (flawless) /Black=0.03 (flawless) .  Inaccurate:     	White=1     	---        OK:         	White=7     	Black=8} 1/2-1/2

[Event "45th FIDE Olympiad 2024"]
[Site "Budapest"]
[Date "2024.09.15"]
[Round "5.108"]
[White "Ramsdal, Jens Albert"]
[Black "O'Gorman, Tom"]
[Result "1/2-1/2"]
[ECO "E11"]
[WhiteElo "2328"]
[BlackElo "2353"]
[Annotator "RC"]
[PlyCount "27"]
[EventDate "2024.09.05"]
[EventType "team-tourn"]
[EventCountry "HUN"]
[SourceTitle "playchess.com"]
[Source "ChessBase"]
[SourceQuality "1"]
[WhiteTeam "Denmark"]
[BlackTeam "Ireland"]
[WhiteTeamCountry "DEN"]
[BlackTeamCountry "IRL"]
[TimeControl "40/5400+30:1800+30"]

1. d4 d5 2. c4 e6 3. Nf3 Nf6 4. g3 Bb4+ 5. Bd2 a5 6. Qc1 O-O 7. Bg2 Be7 8. O-O c6 9. Bf4 Nbd7 10. Rd1 Nh5 11. Bd2 Nhf6 12. Bf4 Nh5 13. Bd2 Nhf6 14. Bf4 1/2-1/2

[Event "45th FIDE Olympiad 2024"]
[Site "Budapest"]
[Date "2024.09.15"]
[Round "5.109"]
[White "Fawzy, Adham"]
[Black "Meshkovs, Nikita"]
[Result "1/2-1/2"]
[ECO "C84"]
[WhiteElo "2507"]
[BlackElo "2534"]
[Annotator "TA"]
[PlyCount "44"]
[EventDate "2024.09.05"]
[EventType "team-tourn"]
[EventCountry "HUN"]
[SourceTitle "playchess.com"]
[Source "ChessBase"]
[SourceQuality "1"]
[WhiteTeam "Egypt"]
[BlackTeam "Latvia"]
[WhiteTeamCountry "EGY"]
[BlackTeamCountry "LAT"]
[TimeControl "40/5400+30:1800+30"]

{[%evp 13,44,37,50,56,45,47,43,45,48,39,56,34,29,0,0,0,0,-4,0,0,0,0,0,0,0,0,0,0,0,0,0,0,0]} 1. e4 e5 2. Nf3 Nc6 3. Bb5 a6 4. Ba4 Nf6 5. O-O {[%cal Bh1f1,Bf1e1,Be1e4][%mdl 32]} Nxe4 6. d4 Be7 7. Re1 b5 {[%cal Bb7b5,Bb5a4,Ba4a3][%mdl 32]} 8. Rxe4 {[#] And now Bb3 would win.} ({Of course not} 8. Nxe5 Nxe5 9. dxe5 Nc5 $11 (9... Nxf2 10. Qf3 $11)) ({Don't play} 8. dxe5 Nxf2 9. Kxf2 bxa4 $17) 8... d5 9. Nxe5 Nxe5 10. Rxe5 {White is slightly better.} bxa4 11. Nc3 {[%csl LRa4,LRd5]} O-O {[%cal Oa4a3]} 12. Re1 {[%cal Oc3d5]} a3 {[#]} 13. Nxd5 $1 Qxd5 {The position is equal.} 14. Rxe7 Bh3 {[%csl Gh3][%cal Rd5g2]} 15. Qf3 (15. Qf1 {is more complex.} Qxd4 16. Qd3 Qg4 17. Qe4) 15... Qxf3 16. gxf3 Rae8 17. Re3 Re6 18. b3 Rg6+ 19. Kh1 {[%cal Of3f4]} Bg2+ 20. Kg1 Bh3+ 21. Kh1 {[%cal Of3f4]} Bg2+ 22. Kg1 Bh3+ {White did not feel at home in the position after the opening.   Weighted Error Value: White=0.06 (flawless) /Black=0.01 (flawless) .  Inaccurate:     	White=1     	---        OK:         	White=5     	Black=12     Best:        	---       	Black=1} 1/2-1/2

[Event "45th FIDE Olympiad 2024"]
[Site "Budapest"]
[Date "2024.09.15"]
[Round "5.109"]
[White "Yacouba, Souley Moussa"]
[Black "Christopher, Art"]
[Result "1/2-1/2"]
[ECO "D00"]
[WhiteElo "1645"]
[BlackElo "1779"]
[PlyCount "131"]
[EventDate "2024.09.05"]
[EventType "team-tourn"]
[EventCountry "HUN"]
[WhiteTeam "Niger"]
[BlackTeam "British Virgin Islands"]
[WhiteTeamCountry "NIG"]
[BlackTeamCountry "IVB"]
[TimeControl "40/5400+30:1800+30"]

1. d4 d5 2. Bf4 Bf5 3. e3 Nf6 4. c3 e6 5. Qb3 b6 6. Bb5+ Nfd7 7. Nf3 a6 8. Be2 c5 9. Qa4 c4 10. Nbd2 b5 11. Qd1 Nb6 12. Bg5 f6 13. Bf4 Nc6 14. Nh4 Be4 15. Nhf3 Na4 16. Qc1 Bg6 17. Nh4 Bf7 18. Bg3 Be7 19. Nhf3 O-O 20. O-O Rb8 21. Bxb8 Qxb8 22. Rb1 Bg6 23. Ra1 Bd6 24. Re1 e5 25. g3 Nb6 26. Nh4 Bf7 27. Bg4 h5 28. Bh3 Ne7 29. Nf5 Nxf5 30. Bxf5 g6 31. Bh3 e4 32. Kf1 h4 33. Qd1 hxg3 34. hxg3 Kg7 35. Ke2 Rh8 36. Rh1 g5 37. g4 Rh4 38. Qg1 Be6 39. Qg2 Qh8 40. Rag1 Na4 41. Rb1 Qc8 42. Rhc1 Rxh3 43. Rg1 Rh4 44. Ke1 Rxg4 45. Qh1 Rxg1+ 46. Qxg1 Qh8 47. Nf1 Qh5 48. Kd2 Qf3 49. Nh2 Bxh2 50. Qxh2 Bg4 51. Re1 Nxb2 52. Qg3 Qxg3 53. fxg3 Nd3 54. Rb1 Bd7 55. a4 Kg6 56. axb5 Bxb5 57. Ke2 Kh5 58. Rf1 Kg4 59. Rxf6 a5 60. Rb6 Be8 61. Rb8 Bh5 62. Ra8 Nc1+ 63. Kf2 Nd3+ 64. Kg2 Ne1+ 65. Kf2 Nd3+ 66. Kg2 1/2-1/2

[Event "45th FIDE Olympiad 2024"]
[Site "Budapest"]
[Date "2024.09.15"]
[Round "5.110"]
[White "Kantans, Toms"]
[Black "Wageih, Kareim"]
[Result "1-0"]
[ECO "B12"]
[WhiteElo "2486"]
[BlackElo "2402"]
[Annotator "TA"]
[PlyCount "107"]
[EventDate "2024.09.05"]
[EventType "team-tourn"]
[EventCountry "HUN"]
[SourceTitle "playchess.com"]
[Source "ChessBase"]
[SourceQuality "1"]
[WhiteTeam "Latvia"]
[BlackTeam "Egypt"]
[WhiteTeamCountry "LAT"]
[BlackTeamCountry "EGY"]
[TimeControl "40/5400+30:1800+30"]

{[%evp 19,107,13,19,29,61,61,123,121,207,197,193,177,198,179,174,162,168,167,253,240,271,233,231,233,235,248,233,241,240,234,224,225,229,227,223,242,263,228,385,381,359,311,383,389,393,387,397,389,439,413,434,392,389,377,456,440,449,444,454,481,468,527,543,550,598,483,537,431,635,649,608,568,543,547,543,534,772,743,892,893,1460,1496,1624,1598,29987,29988,29988,29989,29989,29986]} 1. e4 c6 2. d4 d5 3. e5 Bf5 4. Nf3 e6 5. Be2 Nd7 6. O-O h6 7. Nbd2 Ne7 {B12: Caro-Kann: Advance Variation.} 8. Nb3 g5 9. a4 Bg7 10. a5 a6 11. Bd2 Ng6 12. Ne1 h5 $146 (12... Nf4 $14) ({Predecessor:} 12... Nf4 13. Bxf4 gxf4 14. Bd3 Qg5 15. Bxf5 Qxf5 16. Qf3 c5 17. Nxc5 Nxc5 18. dxc5 Bxe5 {0-1 Chabris,C (2125)-Sevian,S (2660) PNWCC Online Masters WOO rapid 2020 (1.7)}) 13. Bxh5 $16 g4 (13... Nf4 $16 {was worth a try.}) 14. Bxg4 $18 Qh4 15. h3 O-O-O 16. Nf3 Qe7 17. Bxf5 exf5 18. Re1 f4 (18... Bh6 {is a better defense.} 19. Bxh6 Rxh6) 19. Qe2 $18 Ndf8 20. Nc5 Ne6 21. Bb4 Nh4 22. Nxe6 Qxe6 23. Ng5 Qg6 24. Qg4+ Nf5 {[#]} 25. Nf3 $1 (25. Qxf4 Bh6 26. Bd2 Rdg8 (26... Rhg8 $2 27. h4 $18)) 25... Qe6 26. Qxf4 Bh6 {[#]} 27. Qh2 $1 ({Don't go for} 27. Qg4 $2 Rdg8 28. Qh5 Bf4 $19) 27... Rdg8 28. Kf1 Bg7 $2 (28... Ng7 29. Re2 Qg6) 29. Ra3 Bh6 30. Rd3 Rh7 31. g4 Ne7 32. Bxe7 Qxe7 33. c3 Qc7 34. b4 Bf8 35. Qg2 Be7 36. Ng1 f5 37. exf6 Bxf6 38. Rf3 Be7 39. Rf5 Bd6 40. Qf3 Kb8 41. Rf6 Ka7 42. Re3 Rgg7 43. Kg2 Qd7 (43... Qd8 $142 44. Qf5 Rh8) 44. Qf5 $18 Qd8 45. Nf3 Be7 46. Rfe6 Rf7 47. Qe5 Qf8 48. Qg3 Qg7 49. g5 Bd8 50. g6 Bc7 51. Ne5 Rf5 52. gxh7 Rg5 53. Qxg5 Qxg5+ 54. Ng4 1-0

[Event "45th FIDE Olympiad 2024"]
[Site "Budapest"]
[Date "2024.09.15"]
[Round "5.111"]
[White "Wafa, Hamed"]
[Black "Miezis, Normunds"]
[Result "1-0"]
[ECO "B41"]
[WhiteElo "2368"]
[BlackElo "2417"]
[Annotator "TA"]
[PlyCount "97"]
[EventDate "2024.09.05"]
[EventType "team-tourn"]
[EventCountry "HUN"]
[SourceTitle "playchess.com"]
[Source "ChessBase"]
[SourceQuality "1"]
[WhiteTeam "Egypt"]
[BlackTeam "Latvia"]
[WhiteTeamCountry "EGY"]
[BlackTeamCountry "LAT"]
[TimeControl "40/5400+30:1800+30"]

{[%evp 13,97,34,47,36,26,12,58,29,59,39,47,39,39,37,37,40,77,79,94,91,115,87,93,57,50,54,79,4,3,0,0,0,0,0,0,0,0,0,0,0,0,0,0,0,0,0,0,0,0,0,18,20,21,21,21,21,21,18,18,18,18,0,0,0,16,16,110,106,711,693,852,823,968,809,1332,1283,5924,6195,29973,29974,29985,29986,29986,29987,29989,29990]} 1. e4 c5 2. Nf3 e6 3. d4 cxd4 4. Nxd4 a6 5. c4 Nf6 6. Nc3 Qc7 7. a3 b6 8. f4 {[%cal Bf2f4,Bf4f5][%mdl 32]} Bb7 9. Bd3 d6 (9... Nc6 $11 10. Nxc6 Qxc6) 10. f5 {White is slightly better.} e5 11. Nc2 Nbd7 {[%cal Bb8d7,Bd7c5,Bc5d3][%mdl 32]} 12. Nb4 Be7 13. O-O Nc5 14. Nbd5 (14. Ncd5 {simplifies} Nxd5 15. Nxd5 Bxd5 16. cxd5 O-O 17. Be3) 14... Qd8 15. Nxe7 (15. b4 {simplifies} Nxd5 16. Nxd5 Bxd5 17. cxd5 Nxd3 18. Qxd3 O-O 19. Be3) 15... Kxe7 16. Bg5 h6 17. Bh4 b5 18. b4 Nxd3 19. Qxd3 bxc4 20. Qxc4 {White has more active pieces.} (20. Qe3 $16) 20... Qb6+ $11 21. Kh1 Rhc8 22. Nd5+ Bxd5 23. Qxd5 Qb5 24. Qd2 Rc4 25. Rfe1 Qc6 26. Rad1 Rd8 27. Qe3 Rc8 {[%cal Bd8c8,Bc8c7,Bc7c3,Bc3d3][%mdl 32]} 28. h3 Rc3 29. Rd3 Rxd3 30. Qxd3 Qc4 31. Qe3 Rc7 32. Bxf6+ gxf6 ({Much weaker is} 32... Kxf6 $6 33. Qg3 g5 34. fxg6 fxg6 35. Rd1 $16) 33. Qxh6 {[%mdl 4096] Endgame. KQR-KQR} Qc2 34. Qe3 Rc3 35. Qa7+ Kf8 36. Qxa6 Rd3 37. a4 {[%cal Ba3a4,Ba4a5][%mdl 32]} Qc3 {[%csl LRb4,LRe1]} 38. Rb1 Qc2 39. Rg1 {Black should prevent a5.} Kg7 (39... Rd2 $11 {remains equal.}) 40. a5 $16 Qe2 $2 {[%mdl 8192] [#] A mistake that costs the game.} (40... Rb3 $16) 41. Qc4 $18 d5 42. exd5 Kf8 43. Qh4 Ke7 44. b5 {[%cal Bb4b5,Bb5b6,Bb6b7][%mdl 32]} Rxd5 45. Qb4+ Ke8 46. b6 {White mates.} Rd4 47. Qb1 Rd8 48. b7 Rb8 49. Qb6 {Weighted Error Value: White=0.08 (flawless) /Black=0.27 (precise) .  Loses game:     	---       	Black=1      Mistake:       	White=1     	Black=2      Inaccurate:     	White=2     	Black=2      OK:         	White=14    	Black=17     Best:        	White=2     	Black=2} 1-0

[Event "45th FIDE Olympiad 2024"]
[Site "Budapest"]
[Date "2024.09.15"]
[Round "5.112"]
[White "Starostits, Ilmars"]
[Black "Sadek, Sameh"]
[Result "1/2-1/2"]
[ECO "A47"]
[WhiteElo "2344"]
[BlackElo "2269"]
[Annotator "TA"]
[PlyCount "164"]
[EventDate "2024.09.05"]
[EventType "team-tourn"]
[EventCountry "HUN"]
[SourceTitle "playchess.com"]
[Source "ChessBase"]
[SourceQuality "1"]
[WhiteTeam "Latvia"]
[BlackTeam "Egypt"]
[WhiteTeamCountry "LAT"]
[BlackTeamCountry "EGY"]
[TimeControl "40/5400+30:1800+30"]

{[%evp 81,164,300,431,251,234,236,261,254,284,130,113,102,101,91,107,89,200,200,254,59,83,88,90,39,85,90,83,60,56,17,33,22,17,0,0,0,0,0,0,0,0,0,0,0,0,-21,0,-2,-2,-2,-2,-4,-4,-4,0,0,0,0,0,0,0,0,0,0,0,0,0,0,0,0,0,0,0,-8,-8,-8,-8,-8,-8,-8,-8,-8,-8,-8,0]} 1. d4 Nf6 2. Nf3 e6 3. e3 b6 4. Bd3 Bb7 5. O-O c5 6. b3 g6 7. Nbd2 Bg7 8. Bb2 d5 {A47: 1 d4 Nf6 2 Nf3 b6: Torre, London and Colle Systems.} 9. dxc5 bxc5 10. c4 O-O 11. cxd5 exd5 12. Rc1 Nbd7 13. Qc2 Qe7 $146 ({Predecessor:} 13... Re8 14. Rfd1 Rc8 15. Qb1 a6 16. Qa1 Qe7 17. h3 Bh6 18. Re1 Rcd8 19. Rcd1 Bg7 20. Qb1 Nh5 21. Bxg7 Nxg7 22. e4 d4 23. e5 Nb6 {½-½ Ustinov,A (2099)-Volkov,S (2054) Vladimir op-B 2009 (3)}) 14. Rfd1 Rac8 15. Qb1 Rfe8 16. Qa1 Nh5 17. Bxg7 Nxg7 18. Qb2 Bc6 19. Qa3 f5 20. Ba6 Rb8 21. Ne1 Ne6 22. Nef3 Rb6 23. Bf1 Qf6 24. g3 a5 25. Bg2 Ra8 26. Rc2 a4 27. Qc1 axb3 28. Nxb3 Rba6 29. Rdd2 Kh8 30. h4 h6 31. Ne1 c4 32. Nd4 Nxd4 33. exd4 Kg7 34. Re2 R8a7 35. Nf3 Ba8 36. Qe1 Nf8 37. Re5 Rxa2 38. Rxa2 Rxa2 39. h5 Ra6 40. Nh4 Re6 41. Nxg6 (41. Bxd5 $2 Bxd5 42. Qe2 c3 43. Nf3 $19) 41... Rxe5 (41... Bb7 {was necessary.} 42. Nf4 (42. Bxd5 $2 Bxd5 43. Qc3 Rd6 $19) 42... Rxe5 43. dxe5 Qe7) 42. Nxe5 (42. dxe5 $142 Qb6 43. e6 Nxe6 (43... Nxg6 $2 44. e7 $18) 44. Qa1+ Qd4 45. Qxa8 Qd1+ 46. Bf1 Qxh5 47. Qh8+ (47. Qxd5 Qxg6 48. Bxc4 Ng5 $16) 47... Kf7 (47... Kxg6 $2 48. Qe8+ Kg5 49. Qxe6 $18) 48. Qh7+ Ng7 49. Nf4) 42... Qb6 $18 43. Nf3 Qe6 44. Qa5 Qc8 {[#]} 45. Qa7+ (45. Ne5 $1 $18 {is the precise move to win.}) 45... Bb7 $16 46. Ne1 (46. Ne5 {is interesting.} Nd7 47. Bh3 Qb8 48. Qa4) 46... Nd7 47. Qa3 Qe8 48. Nc2 Qxh5 (48... Nf6 $16 {might work better.}) 49. Ne3 $18 Qf7 {[#]} 50. Qd6 $2 (50. Bh3 $1 $18) 50... f4 $1 $14 51. gxf4 Nf6 52. Qe5 (52. Nf5+ $16 Kh7 53. Qb6) 52... Kh7 (52... c3 $14) 53. Bh3 $16 Bc6 54. Bf5+ Kg7 55. Bc2 Bd7 56. Kf1 Kf8 (56... Qh5 {is more complex.} 57. Ke1 Kf7 58. f5 Qh1+) 57. f5 Qe7 58. Qf4 (58. Nxd5 $2 {too greedy.} Qxe5 59. dxe5 Nxd5 $19) 58... Kg7 59. Qg3+ Kf8 60. Ng2 Ne4 61. Qb8+ Kf7 62. Qf4 Qg5 63. Qxg5 hxg5 64. Ne3 Nf6 65. Ke2 Ke7 66. Kf3 Be8 67. Kg3 Bh5 68. f4 gxf4+ 69. Kxf4 Bf7 70. Bb1 Kd6 71. Bc2 Ke7 72. Nd1 Kd6 73. Nc3 Ke7 74. Bd1 Kd6 75. Bf3 Bg8 76. Kg5 Ke7 77. Bd1 Ne4+ 78. Nxe4 dxe4 79. Kf4 Bd5 80. Bc2 c3 81. Bb1 (81. Bxe4 Bxe4 82. Kxe4 c2 83. Ke5 c1=Q (83... c1=B 84. f6+ Kf7 85. d5 $11) 84. f6+ Kf7 85. Ke4 Kxf6 86. Kd5 Kf5 87. Kd6 Qc4 88. Kd7 Qxd4+ 89. Kc6 Ke6 90. Kc7 Qd6+ 91. Kc8 Qd7+ 92. Kb8 Kd6 93. Ka8 Kc7 94. Ka7 Qa4#) 81... Kf6 82. Bc2 (82. Bxe4 {is a self mate.} Bxe4 83. Ke3 Bxf5 84. Ke2 c2 85. Kd2 Ke6 86. d5+ Kxd5 87. Kc1 Ke5 88. Kb2 Kf4 89. Kb3 c1=Q (89... c1=B 90. Kb4 Be3 91. Kb5 Ke5 92. Kc4 Ke4 93. Kb4 Kd5 94. Kb5 Bd3+ 95. Kb4 Bd2+ 96. Kb3 Kd4 97. Kb2 Kc4 98. Ka3 Kc3 99. Ka4 Kc2 100. Ka3 Bb5 101. Ka2 Bc1 102. Ka1 Bb2+ 103. Ka2 Bc4#) 90. Kb4 Be6 91. Kb5 Bd7+ 92. Kb4 Ke3 93. Kb3 Kd4 94. Kb4 Qc3#) 82... Ke7 1/2-1/2

[Event "45th FIDE Olympiad 2024"]
[Site "Budapest"]
[Date "2024.09.15"]
[Round "5.113"]
[White "Gazik, Viktor"]
[Black "Wiedenkeller, Michael"]
[Result "1-0"]
[ECO "C65"]
[WhiteElo "2561"]
[BlackElo "2406"]
[Annotator "TA"]
[PlyCount "61"]
[EventDate "2024.09.05"]
[EventType "team-tourn"]
[EventCountry "HUN"]
[SourceTitle "playchess.com"]
[Source "ChessBase"]
[SourceQuality "1"]
[WhiteTeam "Slovakia"]
[BlackTeam "Luxembourg"]
[WhiteTeamCountry "SVK"]
[BlackTeamCountry "LUX"]
[TimeControl "40/5400+30:1800+30"]

{[%evp 11,61,15,17,7,5,4,21,15,17,8,11,0,0,0,0,0,15,-31,0,0,68,52,85,97,143,0,0,0,0,0,0,0,0,0,22,32,14,0,22,29,62,0,68,59,118,111,128,141,114,22,749,744]} 1. e4 e5 2. Nf3 Nc6 3. Bb5 Nf6 4. d3 {[%cal Bd2d3,Bd3d4][%mdl 32]} Bc5 5. c3 O-O 6. O-O d6 7. Re1 Ne7 8. d4 Bb6 9. a4 {aiming for a5. The position is equal.} c6 10. Bf1 Ng6 11. Nbd2 Re8 12. Qc2 exd4 13. cxd4 Ba5 14. Re2 (14. h3 $11 {should be considered.}) 14... Nf4 15. Re3 d5 (15... Bg4 $11) 16. e5 $14 Ng4 {[#]} 17. Rea3 {[%cal Od2c4]} Ng6 (17... Bb4 $142) 18. Nb1 ({Better is} 18. h3 $16) 18... f6 $1 $11 {[%cal Rf6e5]} 19. h3 Nh6 20. Bxh6 gxh6 21. Bd3 Kg7 {[%cal Rf6e5]} 22. Rb3 Bc7 {[%cal Rf6e5]} 23. Nbd2 fxe5 24. dxe5 (24. Nxe5 {simplifies} Bxe5 25. dxe5 Rxe5 26. Nf3) 24... Nxe5 25. Bxh7 {And now Nxe5 would win.} Qd6 26. Nh4 {Dodges Ng6} ({White should play} 26. Nxe5 $14 Rxe5 27. Rd1) 26... Qf6 (26... Kh8 $11) 27. Ndf3 $1 $14 Rb8 (27... Nc4 $14) 28. Nxe5 $40 {[%mdl 128] White has strong attack.} Rxe5 29. Rf3 {Dancing on a razor blade.} Qd6 ({Stronger than} 29... Qxh4 30. Qg6+ Kh8 31. Qg8#) 30. Bf5 {White has more active pieces.} (30. Bg6 $16 Be6 31. Bf5 Rxf5 32. Nxf5+ Bxf5 33. Qxf5) 30... Be6 {[%mdl 8192] [#]} (30... Re2 $11 31. Qc3+ (31. Qxe2 $2 {leads to mate.} Qh2+ 32. Kf1 Qh1#) 31... Qe5) 31. Rg3+ {Weighted Error Value: White=0.19 (very precise) /Black=0.22 (precise) .  Loses game:     	---       	Black=1      Mistake:       	White=4     	Black=4      Inaccurate:     	---       	Black=3      OK:         	White=6     	Black=10     Best:        	White=5     	---        Strong:       	White=1     	Black=1} 1-0

[Event "45th FIDE Olympiad 2024"]
[Site "Budapest"]
[Date "2024.09.15"]
[Round "5.114"]
[White "Berend, Fred"]
[Black "Haring, Filip"]
[Result "1/2-1/2"]
[ECO "D30"]
[WhiteElo "2230"]
[BlackElo "2503"]
[Annotator "TA"]
[PlyCount "69"]
[EventDate "2024.09.05"]
[EventType "team-tourn"]
[EventCountry "HUN"]
[SourceTitle "playchess.com"]
[Source "ChessBase"]
[SourceQuality "1"]
[WhiteTeam "Luxembourg"]
[BlackTeam "Slovakia"]
[WhiteTeamCountry "LUX"]
[BlackTeamCountry "SVK"]
[TimeControl "40/5400+30:1800+30"]

{[%evp 9,69,13,28,24,33,32,25,32,38,38,35,29,31,39,29,35,26,18,16,-9,-8,-13,-6,0,0,0,12,8,21,18,8,6,6,4,12,13,25,17,23,22,27,13,8,12,9,9,8,6,6,6,17,6,6,6,18,31,24,0,6,0,34,0]} 1. d4 d5 2. c4 e6 3. Nf3 a6 4. Bg5 Be7 5. Bxe7 Nxe7 6. e3 Nd7 7. Nc3 O-O 8. Qc2 {White has an edge.} h6 9. Rc1 dxc4 10. Bxc4 b5 11. Be2 Bb7 $1 12. O-O Rc8 13. a4 c5 14. axb5 Bxf3 15. Bxf3 cxd4 16. exd4 axb5 {Threatens to win with ...b4.} 17. Qb3 Qc7 {[#]} 18. Nd5 $1 Qd6 {[%cal Re7d5]} 19. Nxe7+ Qxe7 20. Qxb5 Rb8 21. Qe2 Qd6 {Inhibits d5.} 22. Rfd1 Nf6 23. Rd2 Rb4 24. Rc6 Qb8 25. Rc4 Rxc4 26. Qxc4 Rc8 27. Qf1 Qb4 28. Qd1 Rd8 29. g3 h5 30. h4 (30. Bxh5 $2 {loses.} Nxh5 31. Qc1 Nf6 $19 (31... Rxd4 $2 32. Rxd4 Qxd4 33. Qc8+ Kh7 34. Qc7 $19)) 30... g6 31. b3 Qc3 32. Rd3 Qb2 33. Rd2 Qc3 34. Rd3 Qb2 35. Rd2 {Weighted Error Value: White=0.04 (flawless) /Black=0.02 (flawless) .  Inaccurate:     	White=1     	---        OK:         	White=12    	Black=16     Strong:       	---       	Black=1} 1/2-1/2